[Event "MCCT Chessable Masters 2022"]
[Site "Online"]
[Date "2022.05.16"]
[Round "15.7"]
[White "Wei, Yi"]
[Black "Grandelius, Nils"]
[Result "1-0"]
[ECO "B90"]
[WhiteElo "2727"]
[BlackElo "2635"]
[Annotator "TA"]
[PlyCount "95"]
[EventDate "2022.05.19"]
[EventType "tourn"]
[EventCountry "NET"]
[SourceTitle "playchess.com"]
[Source "ChessBase"]
[SourceQuality "1"]
[TimeControl "900+10"]

{[%evp 15,95,11,5,-12,-7,-25,0,0,0,0,0,0,0,0,0,0,0,0,0,0,33,25,28,29,29,40,35,25,85,64,74,47,51,58,59,51,109,22,135,112,216,162,179,108,104,104,108,104,96,-9,-10,-11,-17,-49,0,0,0,0,0,-6,183,189,222,144,139,143,400,403,377,368,812,808,762,767,1853,1853,1669,1611,29966,29968,5110,3494]} 1. e4 {[%emt 0:00:00] Marin,M} c5 {[%emt 0:00:00]} 2. Nf3 {[%emt 0:00:02]} d6 {[%emt 0:00:01]} 3. d4 {[%emt 0:00:00]} cxd4 {[%emt 0:00:00]} 4. Nxd4 {[%emt 0:00:01]} Nf6 {[%emt 0:00:00]} 5. Nc3 {[%emt 0:00:01]} a6 {[%emt 0:00:01]} 6. Be3 {[%emt 0:00:01]} e5 {[%emt 0:00:03]} 7. Nb3 {[%emt 0:00:01]} Be6 {[%emt 0:00:01]} 8. Qd2 {[%emt 0:00:05]} Be7 {[%emt 0:00:17]} 9. h3 {[%emt 0:00:09] B90: Sicilian Najdorf: Unusual White 6th moves, 6 Be3 Ng4 and 6 Be3 e5.} O-O {[%emt 0:00:25]} 10. O-O-O {[%emt 0:00:06]} Nbd7 {[%emt 0:00:04]} (10... a5 $5 {[%cal Ra5a4]}) 11. g4 {[%emt 0:00:19] The position is equal.} b5 {[%emt 0:00:02] [#]} 12. a3 $5 $146 {[%emt 0:00:03][%mdl 8] An interesting novelty.} ({Predecessor:} 12. Kb1 Qc7 13. Bg2 Nb6 14. Bxb6 Qxb6 15. f4 Bc4 16. g5 Nh5 17. fxe5 dxe5 18. Nd5 Bxd5 19. exd5 {½-½ (32) Anand,V (2779)-Ivanchuk,V (2750) Morelia/Linares 2007 CBM 117 [Marin,M]}) 12... Qc7 {[%emt 0:00:03]} 13. Kb1 {[%emt 0:00:05]} Nc5 {[%emt 0:00:07]} 14. Nd5 {[%emt 0:00:02]} Bxd5 {[%emt 0:02:03]} 15. exd5 {[%emt 0:00:03] Hoping for Nxc5.} Nfe4 {[%emt 0:00:03]} 16. Qe1 {[%emt 0:01:04]} Bh4 {[%emt 0:02:34]} 17. Rg1 {[%emt 0:01:57]} f5 {[%emt 0:02:31]} 18. gxf5 {[%emt 0:00:37]} Rxf5 {[%emt 0:00:10][%cal Rh4f2]} 19. Nxc5 {[%emt 0:00:14]} Nxc5 {[%emt 0:00:00]} 20. Rg4 {[%emt 0:00:31]} Bf6 {[%emt 0:00:48]} 21. h4 {[%emt 0:07:53]} e4 {[%emt 0:01:57]} (21... Rb8 $11) 22. Bh3 {[%emt 0:00:44][%cal Og4e4]} Re5 {[%emt 0:04:57]} 23. Bd4 {[%emt 0:00:22]} Rf8 {[%emt 0:00:34]} 24. Bxe5 {[%emt 0:00:47]} Bxe5 {[%emt 0:00:00]} 25. Rg5 {[%emt 0:00:14][%cal Og5e5]} Bf6 {[%emt 0:01:10]} (25... Qe7 $1 $14) 26. Rf5 {[%emt 0:00:42]} (26. Be6+ $16 Nxe6 27. dxe6 Bxg5 28. hxg5) 26... g6 {[%emt 0:00:56]} (26... Qe7 $11 {keeps the balance.}) 27. Rf4 $16 {[%emt 0:00:05]} Qg7 {[%emt 0:00:01]} (27... Be5 $16 28. Rxf8+ Kxf8) 28. Be6+ $18 {[%emt 0:00:23]} Kh8 {[%emt 0:00:08]} 29. h5 {[%emt 0:01:18]} (29. f3 $18) 29... Qh6 $16 {[%emt 0:00:07] [#]} 30. Rxf6 {[%emt 0:00:23][%mdl 512]} Rxf6 {[%emt 0:00:03] [#]} 31. Qc3 $1 {[%emt 0:00:08]} g5 {[%emt 0:00:37] [#]} 32. b4 {[%emt 0:00:04]} (32. Rh1 $1 $16) 32... Na4 $11 {[%emt 0:00:01]} 33. Qd4 {[%emt 0:01:43]} Qg7 {[%emt 0:00:03][%cal Of6e6] Threatens to win with ...Rxe6!} 34. Kc1 $1 {[%emt 0:00:30]} Rf4 {[%emt 0:00:22]} (34... h6 $1 $15) 35. h6 $1 {[%emt 0:00:09][%csl Gd4][%cal Rh6g7]} Qxd4 {[%emt 0:00:07]} 36. Rxd4 {[%emt 0:00:00][%mdl 4096] Endgame Black must now prevent c4. KRB-KRN} Nb6 {[%emt 0:00:25] Inhibits c4.} 37. a4 {[%emt 0:00:21][%cal Ba3a4,Ba4a5][%mdl 32]} Rh4 $2 {[%emt 0:00:16]} (37... bxa4 38. Kb1) (37... Nxa4 $11 {and Black has nothing to worry.} 38. Bc8 Kg8) 38. a5 $18 {[%emt 0:00:07]} Nc4 {[%emt 0:00:01]} 39. Kd1 {[%emt 0:00:15] Strongly threatening Bc8.} Rxh6 {[%emt 0:00:06]} 40. Rxe4 {[%emt 0:00:04]} Rf6 $2 {[%emt 0:00:08][%mdl 8192] This costs Black the game.} (40... Rh1+ $16 41. Re1 Rh4) 41. Bc8 {[%emt 0:00:06]} Rxf2 {[%emt 0:00:08]} 42. Bxa6 {[%emt 0:00:00]} Rd2+ $2 {[%emt 0:00:33]} (42... Na3 43. Bb7 Rf1+ 44. Ke2 Ra1) 43. Ke1 {[%emt 0:00:03]} Rxc2 {[%emt 0:00:05]} 44. Bxb5 {[%emt 0:00:04]} Ne5 {[%emt 0:00:03] [#]} 45. Rxe5 $1 {[%emt 0:00:22][%mdl 512]} dxe5 {[%emt 0:00:00]} 46. d6 {[%emt 0:00:02][%cal Bd5d6,Bd6d7][%mdl 32] Threatening mate with d7.} Rc8 {[%emt 0:00:04]} 47. d7 {[%emt 0:00:10]} Rf8 {[%emt 0:00:09]} 48. Bc6 {[%emt 0:00:07] Weighted Error Value: White=0.12 (very precise) /Black=0.48} 1-0

[Event "MCCT Chessable Masters 2022"]
[Site "Online"]
[Date "2022.05.16"]
[Round "15.8"]
[White "Giri, Anish"]
[Black "Tari, Aryan"]
[Result "1/2-1/2"]
[ECO "B11"]
[WhiteElo "2761"]
[BlackElo "2654"]
[Annotator "TA"]
[PlyCount "84"]
[EventDate "2022.05.19"]
[EventType "tourn"]
[EventCountry "NET"]
[SourceTitle "playchess.com"]
[Source "ChessBase"]
[SourceQuality "1"]
[TimeControl "900+10"]

{[%evp 10,84,16,14,27,25,30,18,26,0,12,16,24,-56,-50,-54,-54,-54,-51,-52,-50,-57,-16,-24,-17,-27,-20,-20,-29,-11,-13,-16,-16,-13,-13,-13,-11,-11,-9,-26,-15,-22,-10,-21,-14,-16,77,-18,-7,-18,-17,-15,0,0,0,0,0,0,0,0,0,0,0,0,0,0,0,0,0,0,0,0,0,0,0,0,0]} 1. e4 {[%emt 0:00:00]} c6 {[%emt 0:00:00]} 2. Nc3 {[%emt 0:00:02]} d5 {[%emt 0:00:02]} 3. Nf3 {[%emt 0:00:00]} dxe4 {[%emt 0:00:03]} 4. Nxe4 {[%emt 0:00:01]} Nf6 {[%emt 0:00:00]} 5. Qe2 {[%emt 0:00:01]} Nxe4 {[%emt 0:00:04]} 6. Qxe4 {[%emt 0:00:00]} Nd7 {[%emt 0:00:01][%cal Bb8d7,Bd7f6,Bf6h5][%mdl 32] B11: Caro-Kann: Two Knights Variation.} 7. Bc4 {[%emt 0:00:03]} Nf6 {[%emt 0:00:02] [#]} 8. Ne5 $1 {[%emt 0:00:01][%csl Ge5][%cal Rc4f7]} e6 {[%emt 0:00:01]} 9. Qf4 {[%emt 0:00:00]} Bd6 {[%emt 0:01:20] ...Qa5 is the strong threat.} 10. d4 {[%emt 0:00:10]} O-O {[%emt 0:00:53] [#]} 11. Qg3 $146 {[%emt 0:04:56]} (11. O-O $11) ({Predecessor:} 11. O-O Qc7 12. Re1 b5 13. Bd3 Bb7 14. Qh4 g6 15. Qxf6 {1-0 (15) Tregubov,P (2539)-Manukian,A (2196) Chess.com INT 2022}) 11... c5 $15 {[%emt 0:02:46]} ({Don't play} 11... Ne4 12. Qe3 (12. Qf4 Qa5+ 13. Ke2 Nf6 $11) 12... Nf6 13. O-O $11) 12. Bh6 {[%emt 0:03:20][%csl Gh6][%cal Rg3g7]} Nh5 {[%emt 0:00:43]} 13. Qg4 {[%emt 0:00:02] [#] Strongly threatening 0-0-0.} cxd4 $1 {[%emt 0:00:41] aiming for ...Qa5+.} 14. Nf3 {[%emt 0:00:36]} Qa5+ {[%emt 0:01:18]} 15. Bd2 {[%emt 0:00:11]} Bb4 {[%emt 0:00:50]} 16. O-O-O {[%emt 0:00:41]} Bxd2+ {[%emt 0:02:40]} 17. Rxd2 {[%emt 0:00:03]} Nf6 {[%emt 0:00:12]} 18. Qg5 {[%emt 0:01:41]} Qxg5 {[%emt 0:01:06]} 19. Nxg5 {[%emt 0:00:00]} Bd7 {[%emt 0:00:18]} 20. Rxd4 {[%emt 0:00:21]} Bc6 {[%emt 0:00:09] Prevents Ne4.} 21. f3 {[%emt 0:00:23]} Rfd8 {[%emt 0:00:22]} 22. Rxd8+ {[%emt 0:00:09]} Rxd8 {[%emt 0:00:00]} 23. Nh3 {[%emt 0:01:28]} Kf8 {[%emt 0:00:29]} 24. a3 {[%emt 0:00:25]} h6 {[%emt 0:00:10]} 25. Nf2 $1 {[%emt 0:00:10]} g5 {[%emt 0:00:19]} 26. Re1 {[%emt 0:00:02]} h5 {[%emt 0:00:47]} 27. Nd3 {[%emt 0:00:02]} b6 {[%emt 0:00:40] [#]} (27... Ke7 $11) 28. Ne5 {[%emt 0:00:02]} ({White should try} 28. Bxe6 $1 $16 Bb5 (28... Bxf3 29. Ne5) 29. Bf5) 28... Bb7 {[%emt 0:00:01] The position is equal.} 29. c3 {[%emt 0:00:52]} g4 {[%emt 0:00:15]} 30. Be2 {[%emt 0:00:12]} gxf3 {[%emt 0:00:25]} 31. Bxf3 {[%emt 0:00:20]} Bxf3 {[%emt 0:00:07]} 32. Nxf3 $11 {[%emt 0:00:11][%mdl 4096] Endgame KRN-KRN} Ke7 {[%emt 0:00:22]} 33. Kc2 {[%emt 0:00:05]} Nd5 {[%emt 0:00:28]} 34. g3 {[%emt 0:00:19]} Rg8 {[%emt 0:00:32]} 35. c4 {[%emt 0:00:09]} Nf6 {[%emt 0:00:05]} 36. b4 {[%emt 0:00:03]} Nd7 {[%emt 0:00:07]} 37. Nd4 {[%emt 0:00:16]} a6 {[%emt 0:00:30]} 38. Kc3 {[%emt 0:00:03]} e5 {[%emt 0:00:26]} 39. Nf5+ {[%emt 0:01:10]} Ke6 {[%emt 0:00:05]} 40. Nd4+ {[%emt 0:00:05]} Ke7 {[%emt 0:00:01]} 41. Nf5+ {[%emt 0:00:02]} Ke6 {[%emt 0:00:00]} 42. Nd4+ {[%emt 0:00:04]} Ke7 {[%emt 0:00:01] Weighted Error Value: White=0.10 (very precise) /Black=0.10 (very precise)} 1/2-1/2